[Event "Titled Tuesday Blitz February 07 Late 2023"]
[White "Yeritsyan, Hayk"]
[Black "Makhnev, Denis"]
[WhiteFideId "13307320"]
[BlackFideId "13707647"]
[WhiteElo "2241"]
[BlackElo "2483"]
[Result "0-1"]
[Round "01"]
[TimeControl "180+2"]
[Date "2023.02.07"]
[WhiteClock "0:00:14"]
[BlackClock "0:00:16"]

1. d4 {[%clk 0:02:56]}  Nf6 {[%clk 0:02:59]} 2. Nf3 {[%clk 0:02:55]}  e6 {[%clk 0:02:59]} 3. e3 {[%clk 0:02:55]}  d5 {[%clk 0:02:53]} 4. Bd3 {[%clk 0:02:55]}  g6 {[%clk 0:02:52]} 5. Nbd2 {[%clk 0:02:53]}  Bg7 {[%clk 0:02:53]} 6. Ne5 {[%clk 0:02:53]}  O-O {[%clk 0:02:48]} 7. O-O {[%clk 0:02:53]}  c5 {[%clk 0:02:48]} 8. c3 {[%clk 0:02:53]}  b6 {[%clk 0:02:49]} 9. f4 {[%clk 0:02:52]}  Ba6 {[%clk 0:02:49]} 10. Bxa6 {[%clk 0:02:46]}  Nxa6 {[%clk 0:02:50]} 11. Qe2 {[%clk 0:02:47]}  Nc7 {[%clk 0:02:50]} 12. Ndf3 {[%clk 0:02:47]}  Nce8 {[%clk 0:02:48]} 13. Bd2 {[%clk 0:02:46]}  Ne4 {[%clk 0:02:47]} 14. Be1 {[%clk 0:02:44]}  f6 {[%clk 0:02:47]} 15. Nd3 {[%clk 0:02:44]}  N8d6 {[%clk 0:02:46]} 16. Nf2 {[%clk 0:02:43]}  Qc7 {[%clk 0:02:44]} 17. Nxe4 {[%clk 0:02:42]}  Nxe4 {[%clk 0:02:44]} 18. Nd2 {[%clk 0:02:42]}  Nd6 {[%clk 0:02:45]} 19. Bg3 {[%clk 0:02:38]}  Qc6 {[%clk 0:02:42]} 20. Rac1 {[%clk 0:02:25]}  b5 {[%clk 0:02:39]} 21. Bf2 {[%clk 0:02:05]}  c4 {[%clk 0:02:32]} 22. Rce1 {[%clk 0:01:49]}  f5 {[%clk 0:02:32]} 23. Bh4 {[%clk 0:01:46]}  Rf7 {[%clk 0:02:22]} 24. Nf3 {[%clk 0:01:43]}  Rb7 {[%clk 0:02:22]} 25. Rc1 {[%clk 0:01:35]}  a5 {[%clk 0:02:21]} 26. Be1 {[%clk 0:01:30]}  b4 {[%clk 0:02:14]} 27. b3 {[%clk 0:01:20]}  cxb3 {[%clk 0:00:52]} 28. axb3 {[%clk 0:01:08]}  a4 {[%clk 0:00:53]} 29. Bd2 {[%clk 0:01:06]}  axb3 {[%clk 0:00:52]} 30. cxb4 {[%clk 0:01:04]}  Nc4 {[%clk 0:00:53]} 31. Rb1 {[%clk 0:00:52]}  b2 {[%clk 0:00:42]} 32. Qd3 {[%clk 0:00:44]}  Qa4 {[%clk 0:00:32]} 33. Bc3 {[%clk 0:00:40]}  Qa3 {[%clk 0:00:19]} 34. Nd2 {[%clk 0:00:37]}  Rc8 {[%clk 0:00:19]} 35. Rfd1 {[%clk 0:00:17]}  Nxd2 {[%clk 0:00:17]} 36. Bxb2 {[%clk 0:00:14]}  Qxd3 {[%clk 0:00:16]} 0-1


[Site "https://www.chess.com"]

[Event "Titled Tuesday Blitz February 07 Late 2023"]
[White "Alekseenko, Kirill"]
[Black "Papayan, Oleg"]
[WhiteFideId "4135539"]
[BlackFideId "4193911"]
[WhiteElo "2686"]
[BlackElo "2253"]
[Result "1-0"]
[Round "01"]
[TimeControl "180+2"]
[Date "2023.02.07"]
[WhiteClock "0:02:11"]
[BlackClock "0:00:35"]

1. d4 {[%clk 0:02:53]}  Nf6 {[%clk 0:02:56]} 2. Nc3 {[%clk 0:02:53]}  d5 {[%clk 0:02:55]} 3. Bf4 {[%clk 0:02:53]}  c5 {[%clk 0:02:56]} 4. e3 {[%clk 0:02:53]}  a6 {[%clk 0:02:55]} 5. Nf3 {[%clk 0:02:53]}  cxd4 {[%clk 0:02:56]} 6. exd4 {[%clk 0:02:54]}  Nc6 {[%clk 0:02:56]} 7. Ne5 {[%clk 0:02:52]}  Bd7 {[%clk 0:02:56]} 8. Be2 {[%clk 0:02:50]}  e6 {[%clk 0:02:55]} 9. O-O {[%clk 0:02:50]}  Qb6 {[%clk 0:02:55]} 10. Nxc6 {[%clk 0:02:46]}  Bxc6 {[%clk 0:02:56]} 11. Rb1 {[%clk 0:02:47]}  Be7 {[%clk 0:02:46]} 12. Re1 {[%clk 0:02:47]}  O-O {[%clk 0:02:46]} 13. Bd3 {[%clk 0:02:48]}  h6 {[%clk 0:02:45]} 14. Qd2 {[%clk 0:02:42]}  Rfc8 {[%clk 0:01:18]} 15. h3 {[%clk 0:02:34]}  Bf8 {[%clk 0:01:15]} 16. Be5 {[%clk 0:02:32]}  Nd7 {[%clk 0:01:12]} 17. Bg3 {[%clk 0:02:31]}  Kh8 {[%clk 0:01:09]} 18. Qf4 {[%clk 0:02:29]}  Nf6 {[%clk 0:01:01]} 19. Bh4 {[%clk 0:02:22]}  Nh7 {[%clk 0:00:51]} 20. Qxf7 {[%clk 0:02:16]}  Qxd4 {[%clk 0:00:41]} 21. Qg6 {[%clk 0:02:13]}  Nf6 {[%clk 0:00:35]} 22. Bxf6 {[%clk 0:02:11]}  Qxf6 {[%clk 0:00:35]} 23. Qh7# {[%clk 0:02:11]} 1-0


[Site "https://www.chess.com"]

[Event "Titled Tuesday Blitz February 07 Late 2023"]
[White "Dragomirescu, Angela"]
[Black "Ibarra Jerez, Jose Carlos"]
[WhiteFideId "1209914"]
[BlackFideId "2226332"]
[WhiteElo "2130"]
[BlackElo "2563"]
[Result "0-1"]
[Round "01"]
[TimeControl "180+2"]
[Date "2023.02.07"]
[WhiteClock "0:02:31"]
[BlackClock "0:02:27"]

1. e4 {[%clk 0:03:00]}  c5 {[%clk 0:02:58]} 2. Nf3 {[%clk 0:03:00]}  e6 {[%clk 0:02:58]} 3. d4 {[%clk 0:03:01]}  cxd4 {[%clk 0:02:59]} 4. Nxd4 {[%clk 0:03:01]}  Bc5 {[%clk 0:02:59]} 5. Nb3 {[%clk 0:02:58]}  Bb6 {[%clk 0:03:00]} 6. Bd3 {[%clk 0:02:55]}  Ne7 {[%clk 0:03:00]} 7. Qg4 {[%clk 0:02:54]}  O-O {[%clk 0:02:59]} 8. Bh6 {[%clk 0:02:53]}  Ng6 {[%clk 0:02:59]} 9. Bd2 {[%clk 0:02:53]}  Nc6 {[%clk 0:02:58]} 10. Qe2 {[%clk 0:02:52]}  Qh4 {[%clk 0:02:52]} 11. g3 {[%clk 0:02:44]}  Qh3 {[%clk 0:02:51]} 12. Qf1 {[%clk 0:02:45]}  Qxf1+ {[%clk 0:02:34]} 13. Kxf1 {[%clk 0:02:45]}  Nge5 {[%clk 0:02:27]} 14. Be2 {[%clk 0:02:45]}  f5 {[%clk 0:02:26]} 15. exf5 {[%clk 0:02:30]}  Rxf5 {[%clk 0:02:27]} 16. Kg2 {[%clk 0:02:31]} 0-1


[Site "https://www.chess.com"]

[Event "Titled Tuesday Blitz February 07 Late 2023"]
[White "Indjic, Aleksandar"]
[Black "Fiorito, Francisco"]
[WhiteFideId "911925"]
[BlackFideId "180165"]
[WhiteElo "2618"]
[BlackElo "2305"]
[Result "1-0"]
[Round "01"]
[TimeControl "180+2"]
[Date "2023.02.07"]
[WhiteClock "0:00:35"]
[BlackClock "0:00:01"]

1. d4 {[%clk 0:02:58]}  Nf6 {[%clk 0:02:59]} 2. c4 {[%clk 0:02:58]}  g6 {[%clk 0:02:58]} 3. Nc3 {[%clk 0:02:56]}  d5 {[%clk 0:02:57]} 4. Nf3 {[%clk 0:02:55]}  Bg7 {[%clk 0:02:56]} 5. h4 {[%clk 0:02:55]}  h5 {[%clk 0:02:49]} 6. Bg5 {[%clk 0:02:31]}  c6 {[%clk 0:02:45]} 7. e3 {[%clk 0:02:28]}  O-O {[%clk 0:02:33]} 8. Qb3 {[%clk 0:02:23]}  dxc4 {[%clk 0:02:31]} 9. Bxc4 {[%clk 0:02:22]}  e6 {[%clk 0:02:12]} 10. g4 {[%clk 0:02:21]}  b5 {[%clk 0:02:06]} 11. Be2 {[%clk 0:02:19]}  hxg4 {[%clk 0:02:02]} 12. Ne5 {[%clk 0:02:18]}  g3 {[%clk 0:01:53]} 13. f4 {[%clk 0:02:14]}  Qa5 {[%clk 0:01:27]} 14. O-O-O {[%clk 0:02:04]}  b4 {[%clk 0:01:24]} 15. Bxf6 {[%clk 0:01:51]}  Bxf6 {[%clk 0:01:22]} 16. Ne4 {[%clk 0:01:51]}  Bg7 {[%clk 0:01:11]} 17. h5 {[%clk 0:01:48]}  Qd5 {[%clk 0:01:10]} 18. Qc2 {[%clk 0:01:45]}  Qxa2 {[%clk 0:00:52]} 19. Bc4 {[%clk 0:01:43]}  Qa1+ {[%clk 0:00:49]} 20. Kd2 {[%clk 0:01:42]}  Qa5 {[%clk 0:00:50]} 21. b3 {[%clk 0:01:41]}  Rd8 {[%clk 0:00:20]} 22. Ke2 {[%clk 0:01:29]}  c5 {[%clk 0:00:10]} 23. Nxf7 {[%clk 0:01:17]}  Kxf7 {[%clk 0:00:09]} 24. Ng5+ {[%clk 0:01:16]}  Kg8 {[%clk 0:00:08]} 25. h6 {[%clk 0:01:08]}  cxd4 {[%clk 0:00:03]} 26. Qxg6 {[%clk 0:01:04]}  d3+ {[%clk 0:00:04]} 27. Bxd3 {[%clk 0:00:52]}  Qc7 {[%clk 0:00:03]} 28. Bc4 {[%clk 0:00:36]}  Ba6 {[%clk 0:00:01]} 29. Rxd8+ {[%clk 0:00:35]}  Qxd8 {[%clk 0:00:01]} 30. Qf7+ {[%clk 0:00:35]}  Kh8 {[%clk 0:00:01]} 31. hxg7# {[%clk 0:00:35]} 1-0


[Site "https://www.chess.com"]

[Event "Titled Tuesday Blitz February 07 Late 2023"]
[White "Suleymanli, Aydin"]
[Black "Danielyan, Vahe"]
[WhiteFideId "13413937"]
[BlackFideId "13304828"]
[WhiteElo "2560"]
[BlackElo "2346"]
[Result "1-0"]
[Round "01"]
[TimeControl "180+2"]
[Date "2023.02.07"]
[WhiteClock "0:01:06"]
[BlackClock "0:00:05"]

1. e4 {[%clk 0:03:00]}  c5 {[%clk 0:02:56]} 2. Nf3 {[%clk 0:03:00]}  Nc6 {[%clk 0:02:56]} 3. d4 {[%clk 0:02:58]}  cxd4 {[%clk 0:02:57]} 4. Nxd4 {[%clk 0:02:59]}  g6 {[%clk 0:02:55]} 5. Nc3 {[%clk 0:02:55]}  Bg7 {[%clk 0:02:55]} 6. Nb3 {[%clk 0:02:56]}  Nf6 {[%clk 0:02:54]} 7. f3 {[%clk 0:02:56]}  d6 {[%clk 0:02:53]} 8. Be3 {[%clk 0:02:56]}  Bd7 {[%clk 0:02:53]} 9. Qd2 {[%clk 0:02:53]}  a6 {[%clk 0:02:53]} 10. Be2 {[%clk 0:02:50]}  b5 {[%clk 0:02:52]} 11. a4 {[%clk 0:02:50]}  b4 {[%clk 0:02:52]} 12. Nd5 {[%clk 0:02:50]}  Nxd5 {[%clk 0:02:48]} 13. exd5 {[%clk 0:02:51]}  Ne5 {[%clk 0:02:40]} 14. Qxb4 {[%clk 0:02:50]}  O-O {[%clk 0:02:35]} 15. Bb6 {[%clk 0:02:45]}  Qc8 {[%clk 0:02:24]} 16. Nd4 {[%clk 0:02:35]}  Qb7 {[%clk 0:02:08]} 17. a5 {[%clk 0:02:33]}  Rfc8 {[%clk 0:01:59]} 18. c3 {[%clk 0:02:31]}  Qxd5 {[%clk 0:01:32]} 19. Rd1 {[%clk 0:02:31]}  Qb7 {[%clk 0:01:23]} 20. O-O {[%clk 0:02:29]}  Nc6 {[%clk 0:01:13]} 21. Nxc6 {[%clk 0:02:29]}  Bxc6 {[%clk 0:01:14]} 22. Rfe1 {[%clk 0:02:26]}  Bf6 {[%clk 0:01:06]} 23. Bf1 {[%clk 0:02:17]}  h5 {[%clk 0:01:06]} 24. Qf4 {[%clk 0:02:09]}  Bd5 {[%clk 0:00:48]} 25. h4 {[%clk 0:01:56]}  Bg7 {[%clk 0:00:25]} 26. Qg5 {[%clk 0:01:53]}  Be6 {[%clk 0:00:20]} 27. Rxe6 {[%clk 0:01:51]}  fxe6 {[%clk 0:00:20]} 28. Bd3 {[%clk 0:01:49]}  Qd5 {[%clk 0:00:13]} 29. Qxg6 {[%clk 0:01:45]}  Kf8 {[%clk 0:00:10]} 30. Re1 {[%clk 0:01:41]}  e5 {[%clk 0:00:09]} 31. Bf5 {[%clk 0:01:40]}  Qf7 {[%clk 0:00:07]} 32. Qxf7+ {[%clk 0:01:24]}  Kxf7 {[%clk 0:00:08]} 33. Bxc8 {[%clk 0:01:24]}  Rxc8 {[%clk 0:00:09]} 34. Re4 {[%clk 0:01:25]}  Ke6 {[%clk 0:00:08]} 35. Kf2 {[%clk 0:01:24]}  Bf6 {[%clk 0:00:09]} 36. Rb4 {[%clk 0:01:23]}  Kd5 {[%clk 0:00:08]} 37. Be3 {[%clk 0:01:22]}  Rc4 {[%clk 0:00:07]} 38. Rxc4 {[%clk 0:01:18]}  Kxc4 {[%clk 0:00:08]} 39. Bg5 {[%clk 0:01:19]}  Kb3 {[%clk 0:00:08]} 40. Bxf6 {[%clk 0:01:18]}  exf6 {[%clk 0:00:07]} 41. g4 {[%clk 0:01:19]}  hxg4 {[%clk 0:00:05]} 42. h5 {[%clk 0:01:10]}  g3+ {[%clk 0:00:03]} 43. Kxg3 {[%clk 0:01:09]}  d5 {[%clk 0:00:02]} 44. h6 {[%clk 0:01:10]}  d4 {[%clk 0:00:03]} 45. cxd4 {[%clk 0:01:10]}  exd4 {[%clk 0:00:04]} 46. h7 {[%clk 0:01:11]}  d3 {[%clk 0:00:04]} 47. h8=Q {[%clk 0:01:11]}  d2 {[%clk 0:00:05]} 48. Qd8 {[%clk 0:01:10]}  Kc2 {[%clk 0:00:05]} 49. Qc7+ {[%clk 0:01:06]}  Kb1 {[%clk 0:00:04]} 50. Qd6 {[%clk 0:01:05]}  Kc1 {[%clk 0:00:04]} 51. Qc5+ {[%clk 0:01:06]}  Kb1 {[%clk 0:00:05]} 52. Qd4 {[%clk 0:01:06]}  Kc2 {[%clk 0:00:05]} 53. Qc3+ {[%clk 0:01:07]}  Kd1 {[%clk 0:00:04]} 54. Qxf6 {[%clk 0:01:07]}  Ke2 {[%clk 0:00:05]} 55. Qe5+ {[%clk 0:01:06]} 1-0


[Site "https://www.chess.com"]

[Event "Titled Tuesday Blitz February 07 Late 2023"]
[White "Makarian, Rudik"]
[Black "Zochowski, Kacper"]
[WhiteFideId "44105681"]
[BlackFideId "1125494"]
[WhiteElo "2545"]
[BlackElo "2262"]
[Result "1/2-1/2"]
[Round "01"]
[TimeControl "180+2"]
[Date "2023.02.07"]
[WhiteClock "0:00:06"]
[BlackClock "0:00:12"]

1. d4 {[%clk 0:03:00]}  d6 {[%clk 0:02:55]} 2. Nf3 {[%clk 0:03:00]}  Nd7 {[%clk 0:02:54]} 3. e4 {[%clk 0:02:59]}  g6 {[%clk 0:02:53]} 4. Bd3 {[%clk 0:02:57]}  Bg7 {[%clk 0:02:54]} 5. O-O {[%clk 0:02:57]}  e6 {[%clk 0:02:52]} 6. c3 {[%clk 0:02:54]}  Ne7 {[%clk 0:02:52]} 7. Re1 {[%clk 0:02:53]}  b6 {[%clk 0:02:52]} 8. h3 {[%clk 0:02:53]}  Bb7 {[%clk 0:02:52]} 9. a4 {[%clk 0:02:53]}  a6 {[%clk 0:02:53]} 10. Nbd2 {[%clk 0:02:51]}  O-O {[%clk 0:02:53]} 11. Nf1 {[%clk 0:02:51]}  c5 {[%clk 0:02:46]} 12. Ng3 {[%clk 0:02:48]}  h6 {[%clk 0:02:35]} 13. Bf4 {[%clk 0:02:40]}  e5 {[%clk 0:02:30]} 14. dxe5 {[%clk 0:02:30]}  Nxe5 {[%clk 0:02:24]} 15. Nxe5 {[%clk 0:02:22]}  dxe5 {[%clk 0:02:23]} 16. Be3 {[%clk 0:02:22]}  Nc6 {[%clk 0:02:14]} 17. Bc4 {[%clk 0:02:17]}  Qe7 {[%clk 0:02:14]} 18. Bd5 {[%clk 0:02:17]}  Nd8 {[%clk 0:02:10]} 19. c4 {[%clk 0:02:13]}  Ne6 {[%clk 0:02:07]} 20. Ne2 {[%clk 0:02:03]}  Nd4 {[%clk 0:02:05]} 21. Bxd4 {[%clk 0:02:02]}  exd4 {[%clk 0:01:49]} 22. Nc1 {[%clk 0:02:01]}  Rfe8 {[%clk 0:01:21]} 23. Nd3 {[%clk 0:01:55]}  h5 {[%clk 0:01:20]} 24. Qf3 {[%clk 0:01:47]}  a5 {[%clk 0:01:16]} 25. Bxb7 {[%clk 0:01:44]}  Qxb7 {[%clk 0:01:16]} 26. Qf4 {[%clk 0:01:34]}  Kh7 {[%clk 0:01:10]} 27. Re2 {[%clk 0:01:31]}  Bh6 {[%clk 0:01:10]} 28. Qh4 {[%clk 0:01:24]}  Re7 {[%clk 0:00:53]} 29. Rae1 {[%clk 0:01:23]}  Rae8 {[%clk 0:00:52]} 30. Kf1 {[%clk 0:01:18]}  Qc7 {[%clk 0:00:42]} 31. e5 {[%clk 0:01:15]}  Bg7 {[%clk 0:00:39]} 32. f4 {[%clk 0:01:13]}  Qc6 {[%clk 0:00:38]} 33. b3 {[%clk 0:01:12]}  Bh6 {[%clk 0:00:38]} 34. Qg3 {[%clk 0:00:54]}  Qd7 {[%clk 0:00:37]} 35. Qf3 {[%clk 0:00:52]}  h4 {[%clk 0:00:16]} 36. Qg4 {[%clk 0:00:51]}  Qf5 {[%clk 0:00:12]} 37. Qf3 {[%clk 0:00:42]}  Re6 {[%clk 0:00:09]} 38. Kf2 {[%clk 0:00:31]}  g5 {[%clk 0:00:09]} 39. fxg5 {[%clk 0:00:29]}  Qxf3+ {[%clk 0:00:08]} 40. gxf3 {[%clk 0:00:29]}  Bxg5 {[%clk 0:00:09]} 41. f4 {[%clk 0:00:29]}  Bh6 {[%clk 0:00:09]} 42. Kf3 {[%clk 0:00:24]}  Rg6 {[%clk 0:00:10]} 43. Ke4 {[%clk 0:00:13]}  Rg3 {[%clk 0:00:10]} 44. Rh1 {[%clk 0:00:09]}  Kg6 {[%clk 0:00:06]} 45. f5+ {[%clk 0:00:09]}  Kh5 {[%clk 0:00:07]} 46. f6 {[%clk 0:00:04]}  Be3 {[%clk 0:00:06]} 47. Nf4+ {[%clk 0:00:04]}  Bxf4 {[%clk 0:00:06]} 48. Kxf4 {[%clk 0:00:05]}  Rxb3 {[%clk 0:00:07]} 49. e6 {[%clk 0:00:04]}  fxe6 {[%clk 0:00:06]} 50. Ke5 {[%clk 0:00:05]}  Rf3 {[%clk 0:00:05]} 51. Rg1 {[%clk 0:00:03]}  Rf5+ {[%clk 0:00:06]} 52. Kd6 {[%clk 0:00:04]}  Rxf6 {[%clk 0:00:07]} 53. Re5+ {[%clk 0:00:04]}  Kh6 {[%clk 0:00:07]} 54. Kd7 {[%clk 0:00:04]}  Ref8 {[%clk 0:00:07]} 55. Kc6 {[%clk 0:00:04]}  R8f7 {[%clk 0:00:08]} 56. Rg4 {[%clk 0:00:04]}  Rf5 {[%clk 0:00:07]} 57. Rxe6+ {[%clk 0:00:05]}  R7f6 {[%clk 0:00:08]} 58. Rxh4+ {[%clk 0:00:04]}  Kg5 {[%clk 0:00:08]} 59. Rg4+ {[%clk 0:00:04]}  Kh5 {[%clk 0:00:09]} 60. Rxf6 {[%clk 0:00:04]}  Rxf6+ {[%clk 0:00:10]} 61. Kb5 {[%clk 0:00:05]}  d3 {[%clk 0:00:09]} 62. Rg2 {[%clk 0:00:02]}  Rd6 {[%clk 0:00:10]} 63. Rd2 {[%clk 0:00:02]}  Kh4 {[%clk 0:00:11]} 64. Ka6 {[%clk 0:00:03]}  Kxh3 {[%clk 0:00:11]} 65. Kb7 {[%clk 0:00:04]}  Kg3 {[%clk 0:00:11]} 66. Kc7 {[%clk 0:00:04]}  Rd4 {[%clk 0:00:11]} 67. Kxb6 {[%clk 0:00:05]}  Kf3 {[%clk 0:00:11]} 68. Kxc5 {[%clk 0:00:05]}  Rd8 {[%clk 0:00:11]} 69. Kb5 {[%clk 0:00:05]}  Ke3 {[%clk 0:00:12]} 70. Rd1 {[%clk 0:00:05]}  d2 {[%clk 0:00:13]} 71. c5 {[%clk 0:00:06]}  Ke2 {[%clk 0:00:12]} 72. Rxd2+ {[%clk 0:00:06]}  Kxd2 {[%clk 0:00:12]} 73. c6 {[%clk 0:00:06]}  Kc3 {[%clk 0:00:12]} 74. Kxa5 {[%clk 0:00:06]}  Rc8 {[%clk 0:00:13]} 75. Kb6 {[%clk 0:00:05]}  Kb4 {[%clk 0:00:11]} 76. a5 {[%clk 0:00:06]}  Rxc6+ {[%clk 0:00:12]} 77. Kxc6 {[%clk 0:00:06]}  Kxa5 {[%clk 0:00:12]} 1/2-1/2


[Site "https://www.chess.com"]

[Event "Titled Tuesday Blitz February 07 Late 2023"]
[White "Iljin, Timofey"]
[Black "Moussard, Jules"]
[WhiteFideId "14110180"]
[BlackFideId "642908"]
[WhiteElo "2329"]
[BlackElo "2644"]
[Result "0-1"]
[Round "01"]
[TimeControl "180+2"]
[Date "2023.02.07"]
[WhiteClock "0:00:06"]
[BlackClock "0:00:16"]

1. d4 {[%clk 0:02:59]}  d6 {[%clk 0:02:56]} 2. c4 {[%clk 0:03:00]}  e5 {[%clk 0:02:56]} 3. e3 {[%clk 0:03:00]}  f5 {[%clk 0:02:54]} 4. Nc3 {[%clk 0:02:59]}  Be7 {[%clk 0:02:53]} 5. g3 {[%clk 0:02:57]}  Nf6 {[%clk 0:02:53]} 6. Bg2 {[%clk 0:02:57]}  O-O {[%clk 0:02:50]} 7. Nf3 {[%clk 0:02:57]}  e4 {[%clk 0:02:50]} 8. Nd2 {[%clk 0:02:58]}  c6 {[%clk 0:02:50]} 9. d5 {[%clk 0:02:56]}  Nbd7 {[%clk 0:02:42]} 10. O-O {[%clk 0:02:55]}  Ne5 {[%clk 0:02:43]} 11. f3 {[%clk 0:02:47]}  cxd5 {[%clk 0:02:20]} 12. cxd5 {[%clk 0:02:46]}  Qb6 {[%clk 0:02:08]} 13. Qe2 {[%clk 0:02:31]}  exf3 {[%clk 0:01:37]} 14. Nxf3 {[%clk 0:02:31]}  Nxf3+ {[%clk 0:01:38]} 15. Bxf3 {[%clk 0:02:32]}  Bd7 {[%clk 0:01:38]} 16. b3 {[%clk 0:02:17]}  Rac8 {[%clk 0:01:33]} 17. Bb2 {[%clk 0:02:17]}  Rfe8 {[%clk 0:01:33]} 18. Kg2 {[%clk 0:02:12]}  Bd8 {[%clk 0:01:15]} 19. Rae1 {[%clk 0:02:01]}  a5 {[%clk 0:01:15]} 20. Na4 {[%clk 0:01:35]}  Bxa4 {[%clk 0:01:10]} 21. bxa4 {[%clk 0:01:36]}  Qb4 {[%clk 0:01:04]} 22. Bd4 {[%clk 0:01:08]}  Qxa4 {[%clk 0:01:00]} 23. Rb1 {[%clk 0:01:09]}  Rc2 {[%clk 0:00:55]} 24. Rxb7 {[%clk 0:00:57]}  Rxe2+ {[%clk 0:00:51]} 25. Bxe2 {[%clk 0:00:56]}  Qxa2 {[%clk 0:00:51]} 26. Rb2 {[%clk 0:00:54]}  Qxd5+ {[%clk 0:00:49]} 27. Bf3 {[%clk 0:00:55]}  Ne4 {[%clk 0:00:48]} 28. Rfb1 {[%clk 0:00:54]}  Bf6 {[%clk 0:00:47]} 29. Rb5 {[%clk 0:00:54]}  Qc4 {[%clk 0:00:43]} 30. Bd1 {[%clk 0:00:52]}  Kh8 {[%clk 0:00:40]} 31. Rb8 {[%clk 0:00:51]}  Rg8 {[%clk 0:00:20]} 32. Rxg8+ {[%clk 0:00:20]}  Qxg8 {[%clk 0:00:21]} 33. Bb3 {[%clk 0:00:18]}  Qc8 {[%clk 0:00:18]} 34. Ba4 {[%clk 0:00:08]}  Bxd4 {[%clk 0:00:17]} 35. exd4 {[%clk 0:00:09]}  Nc3 {[%clk 0:00:16]} 36. Rc1 {[%clk 0:00:09]}  Qa8+ {[%clk 0:00:16]} 37. Kh3 {[%clk 0:00:09]}  Nxa4 {[%clk 0:00:16]} 38. Rc7 {[%clk 0:00:10]}  h6 {[%clk 0:00:16]} 39. Kh4 {[%clk 0:00:10]}  Qe4+ {[%clk 0:00:16]} 40. Kh3 {[%clk 0:00:09]}  Nb6 {[%clk 0:00:15]} 41. Ra7 {[%clk 0:00:08]}  Nd5 {[%clk 0:00:15]} 42. Ra6 {[%clk 0:00:08]}  Nf4+ {[%clk 0:00:16]} 43. Kh4 {[%clk 0:00:06]}  g5# {[%clk 0:00:16]} 0-1


[Site "https://www.chess.com"]

[Event "Titled Tuesday Blitz February 07 Late 2023"]
[White "Urbina Perez, Juan Antonio"]
[Black "Bacrot, Etienne"]
[WhiteFideId "2217368"]
[BlackFideId "605506"]
[WhiteElo "2266"]
[BlackElo "2667"]
[Result "0-1"]
[Round "01"]
[TimeControl "180+2"]
[Date "2023.02.07"]
[WhiteClock "0:00:14"]
[BlackClock "0:00:07"]

1. e4 {[%clk 0:02:59]}  c5 {[%clk 0:02:59]} 2. Nf3 {[%clk 0:02:58]}  d6 {[%clk 0:02:59]} 3. Bb5+ {[%clk 0:02:55]}  Nd7 {[%clk 0:02:59]} 4. c4 {[%clk 0:02:54]}  e5 {[%clk 0:02:58]} 5. Nc3 {[%clk 0:02:54]}  Ne7 {[%clk 0:02:53]} 6. d3 {[%clk 0:02:51]}  Ng6 {[%clk 0:02:49]} 7. Ba4 {[%clk 0:02:50]}  Be7 {[%clk 0:02:49]} 8. Be3 {[%clk 0:02:44]}  O-O {[%clk 0:02:48]} 9. h4 {[%clk 0:02:44]}  f5 {[%clk 0:02:44]} 10. h5 {[%clk 0:02:39]}  Nh8 {[%clk 0:02:38]} 11. exf5 {[%clk 0:02:37]}  Rxf5 {[%clk 0:02:35]} 12. Qd2 {[%clk 0:02:36]}  Nf8 {[%clk 0:02:31]} 13. O-O-O {[%clk 0:02:32]}  Ne6 {[%clk 0:02:30]} 14. Nd5 {[%clk 0:02:26]}  Nc7 {[%clk 0:02:08]} 15. Nxe7+ {[%clk 0:02:16]}  Qxe7 {[%clk 0:02:08]} 16. Bc2 {[%clk 0:02:17]}  Rf8 {[%clk 0:02:06]} 17. Ng5 {[%clk 0:02:15]}  h6 {[%clk 0:01:40]} 18. Ne4 {[%clk 0:02:09]}  Bf5 {[%clk 0:01:19]} 19. g4 {[%clk 0:02:06]}  Bxe4 {[%clk 0:01:19]} 20. dxe4 {[%clk 0:02:07]}  Nf7 {[%clk 0:01:19]} 21. Rdg1 {[%clk 0:02:01]}  Ne6 {[%clk 0:01:19]} 22. Rd1 {[%clk 0:01:48]}  Rad8 {[%clk 0:01:14]} 23. Rhg1 {[%clk 0:01:41]}  Nfg5 {[%clk 0:01:12]} 24. Rg3 {[%clk 0:01:25]}  Nd4 {[%clk 0:01:01]} 25. Kb1 {[%clk 0:01:21]}  Rf7 {[%clk 0:00:40]} 26. b4 {[%clk 0:01:12]}  Rdf8 {[%clk 0:00:38]} 27. Ka1 {[%clk 0:00:57]}  Kh8 {[%clk 0:00:31]} 28. Bb1 {[%clk 0:00:56]}  b6 {[%clk 0:00:31]} 29. Rf1 {[%clk 0:00:46]}  Ngf3 {[%clk 0:00:27]} 30. Qd3 {[%clk 0:00:38]}  Qh4 {[%clk 0:00:21]} 31. b5 {[%clk 0:00:34]}  Ng5 {[%clk 0:00:19]} 32. Rd1 {[%clk 0:00:18]}  Qh2 {[%clk 0:00:14]} 33. Rdg1 {[%clk 0:00:17]}  Rxf2 {[%clk 0:00:13]} 34. Bxf2 {[%clk 0:00:13]}  Rxf2 {[%clk 0:00:14]} 35. Rc1 {[%clk 0:00:07]}  Nge6 {[%clk 0:00:11]} 36. Rgg1 {[%clk 0:00:05]}  Nf4 {[%clk 0:00:10]} 37. Qg3 {[%clk 0:00:02]}  Qxg3 {[%clk 0:00:09]} 38. Rxg3 {[%clk 0:00:03]}  Nfe2 {[%clk 0:00:09]} 39. Rgg1 {[%clk 0:00:03]}  Nxc1 {[%clk 0:00:08]} 40. Rxc1 {[%clk 0:00:04]}  g5 {[%clk 0:00:07]} 41. Rd1 {[%clk 0:00:03]}  Kg7 {[%clk 0:00:07]} 42. Bd3 {[%clk 0:00:04]}  Rf4 {[%clk 0:00:07]} 43. Rg1 {[%clk 0:00:02]}  Nf3 {[%clk 0:00:07]} 44. Rg2 {[%clk 0:00:01]}  Ne1 {[%clk 0:00:07]} 45. Rg3 {[%clk 0:00:01]}  Nf3 {[%clk 0:00:05]} 46. Bb1 {[%clk 0:00:01]}  Kf6 {[%clk 0:00:04]} 47. Rg2 {[%clk 0:00:01]}  Ke7 {[%clk 0:00:04]} 48. a4 {[%clk 0:00:01]}  Nd4 {[%clk 0:00:04]} 49. a5 {[%clk 0:00:02]}  Nb3+ {[%clk 0:00:04]} 50. Kb2 {[%clk 0:00:02]}  Nxa5 {[%clk 0:00:05]} 51. Ka3 {[%clk 0:00:02]}  Rf3+ {[%clk 0:00:06]} 52. Ka4 {[%clk 0:00:03]}  Rc3 {[%clk 0:00:06]} 53. Rd2 {[%clk 0:00:03]}  Rxc4+ {[%clk 0:00:06]} 54. Ka3 {[%clk 0:00:04]}  Rd4 {[%clk 0:00:06]} 55. Rf2 {[%clk 0:00:05]}  Nc4+ {[%clk 0:00:06]} 56. Ka2 {[%clk 0:00:06]}  Rd2+ {[%clk 0:00:06]} 57. Bc2 {[%clk 0:00:07]}  Rxf2 {[%clk 0:00:05]} 58. Kb3 {[%clk 0:00:05]}  Rxc2 {[%clk 0:00:05]} 59. Ka4 {[%clk 0:00:06]}  Ne3 {[%clk 0:00:05]} 60. Kb3 {[%clk 0:00:06]}  Nxg4 {[%clk 0:00:05]} 61. Ka4 {[%clk 0:00:07]}  Nf6 {[%clk 0:00:06]} 62. Kb3 {[%clk 0:00:08]}  g4 {[%clk 0:00:06]} 63. Kxc2 {[%clk 0:00:09]}  g3 {[%clk 0:00:06]} 64. Kd3 {[%clk 0:00:10]}  g2 {[%clk 0:00:07]} 65. Ke2 {[%clk 0:00:10]}  g1=Q {[%clk 0:00:07]} 66. Kd3 {[%clk 0:00:10]}  Qg3+ {[%clk 0:00:07]} 67. Kc2 {[%clk 0:00:11]}  Qg2+ {[%clk 0:00:07]} 68. Kb3 {[%clk 0:00:12]}  Qf3+ {[%clk 0:00:07]} 69. Kc4 {[%clk 0:00:13]}  Qxe4+ {[%clk 0:00:07]} 70. Kb3 {[%clk 0:00:14]}  Qd3+ {[%clk 0:00:07]} 71. Ka4 {[%clk 0:00:15]}  a6 {[%clk 0:00:07]} 72. bxa6 {[%clk 0:00:14]}  Qc3 {[%clk 0:00:06]} 73. a7 {[%clk 0:00:14]}  Qb4# {[%clk 0:00:07]} 0-1


[Site "https://www.chess.com"]